[Event "*** Titled Tuesday Blitz"]
[Site "Chess.com"]
[Date "2020.05.19"]
[Round "5"]
[White "ChocolateRoses"]
[Black "GlennTipton"]
[Result "0-1"]
[WhiteElo "2263"]
[BlackElo "2479"]
[TimeControl "180+1"]
[EndTime "12:58:09 PDT"]
[Termination "GlennTipton won on time"]

1. Nf3 {[%clk 0:03:00.9]} 1... Nf6 {[%clk 0:02:59.8]} 2. g3 {[%clk 0:02:59.6]}
2... d5 {[%clk 0:02:56.7]} 3. Bg2 {[%clk 0:02:56.1]} 3... c6 {[%clk 0:02:56.8]}
4. O-O {[%clk 0:02:53.5]} 4... Bf5 {[%clk 0:02:55.8]} 5. d3 {[%clk 0:02:42]}
5... e6 {[%clk 0:02:53.7]} 6. c4 {[%clk 0:02:36.8]} 6... Nbd7 {[%clk 0:02:48]}
7. cxd5 {[%clk 0:02:28.4]} 7... cxd5 {[%clk 0:02:45.9]} 8. Nc3 {[%clk
0:02:28.9]} 8... Be7 {[%clk 0:02:42.9]} 9. Bd2 {[%clk 0:02:21.5]} 9... O-O
{[%clk 0:02:37.6]} 10. a3 {[%clk 0:02:16.8]} 10... Rc8 {[%clk 0:02:31.6]} 11. b4
{[%clk 0:02:14.1]} 11... e5 {[%clk 0:02:22.4]} 12. Qb3 {[%clk 0:02:10.4]} 12...
d4 {[%clk 0:02:19.9]} 13. Nb1 {[%clk 0:01:26.5]} 13... Be6 {[%clk 0:02:11]} 14.
Qb2 {[%clk 0:01:25.7]} 14... Nd5 {[%clk 0:01:57.3]} 15. Rc1 {[%clk 0:01:02.1]}
15... Rxc1+ {[%clk 0:01:48.3]} 16. Bxc1 {[%clk 0:01:02]} 16... f6 {[%clk
0:01:47.3]} 17. Nbd2 {[%clk 0:01:01.5]} 17... Nc3 {[%clk 0:01:47.1]} 18. Ne4
{[%clk 0:00:58.3]} 18... Nxe4 {[%clk 0:01:43.1]} 19. dxe4 {[%clk 0:00:59.2]}
19... Nb6 {[%clk 0:01:41.9]} 20. Ne1 {[%clk 0:00:56.9]} 20... Qc7 {[%clk
0:01:30.2]} 21. Nd3 {[%clk 0:00:51.1]} 21... Rc8 {[%clk 0:01:28.2]} 22. Bd2
{[%clk 0:00:32.1]} 22... Qc2 {[%clk 0:01:26.4]} 23. Rc1 {[%clk 0:00:23.1]} 23...
Qxb2 {[%clk 0:01:26.5]} 24. Rxc8+ {[%clk 0:00:24]} 24... Nxc8 {[%clk 0:01:21.7]}
25. Nxb2 {[%clk 0:00:24.9]} 25... Nd6 {[%clk 0:01:19.7]} 26. e3 {[%clk
0:00:22.4]} 26... Nb5 {[%clk 0:01:08.7]} 27. a4 {[%clk 0:00:20]} 27... Nc3
{[%clk 0:01:08.7]} 28. exd4 {[%clk 0:00:18]} 28... Ne2+ {[%clk 0:01:06.6]} 29.
Kf1 {[%clk 0:00:17.5]} 29... Nxd4 {[%clk 0:01:07.5]} 30. Ke1 {[%clk 0:00:15.9]}
30... Bxb4 {[%clk 0:01:04.9]} 31. Bxb4 {[%clk 0:00:15.5]} 31... Nc2+ {[%clk
0:01:04.9]} 32. Kd2 {[%clk 0:00:15.6]} 32... Nxb4 {[%clk 0:01:05.8]} 33. Bf1
{[%clk 0:00:15.1]} 33... Kf7 {[%clk 0:01:01.8]} 34. Kc3 {[%clk 0:00:15.3]} 34...
Nc6 {[%clk 0:01:01.3]} 35. Nc4 {[%clk 0:00:15.5]} 35... Bxc4 {[%clk 0:00:58.3]}
36. Bxc4+ {[%clk 0:00:16.4]} 36... Ke7 {[%clk 0:00:58.5]} 37. Bg8 {[%clk
0:00:16.1]} 37... h6 {[%clk 0:00:58]} 38. Bd5 {[%clk 0:00:17]} 38... Kd6 {[%clk
0:00:58]} 39. Kb3 {[%clk 0:00:14.3]} 39... Kc5 {[%clk 0:00:56.7]} 40. Kc3 {[%clk
0:00:12.4]} 40... a6 {[%clk 0:00:54.3]} 41. Be6 {[%clk 0:00:08.4]} 41... b5
{[%clk 0:00:53]} 42. axb5 {[%clk 0:00:09.3]} 42... axb5 {[%clk 0:00:53.9]} 43.
Bd5 {[%clk 0:00:08.6]} 43... b4+ {[%clk 0:00:53.4]} 44. Kd3 {[%clk 0:00:09.1]}
44... Nd4 {[%clk 0:00:49.4]} 45. Bf7 {[%clk 0:00:06.4]} 45... Kb5 {[%clk
0:00:43.8]} 46. f4 {[%clk 0:00:04.5]} 46... Ka4 {[%clk 0:00:42.9]} 47. fxe5
{[%clk 0:00:04.1]} 47... fxe5 {[%clk 0:00:43.2]} 48. Kd2 {[%clk 0:00:03.1]}
48... Ka3 {[%clk 0:00:42.3]} 49. Kc1 {[%clk 0:00:03.2]} 49... b3 {[%clk
0:00:41.5]} 50. Kb1 {[%clk 0:00:03.6]} 50... Ne2 {[%clk 0:00:39.2]} 51. h3
{[%clk 0:00:03.4]} 51... Nc3+ {[%clk 0:00:13]} 52. Kc1 {[%clk 0:00:01.7]} 52...
b2+ {[%clk 0:00:13.3]} 53. Kc2 {[%clk 0:00:01.2]} 53... b1=Q+ {[%clk 0:00:13.4]}
54. Kxc3 {[%clk 0:00:01.2]} 54... Qxe4 {[%clk 0:00:12.5]} 0-1

[Event "*** Titled Tuesday Blitz"]
[Site "Chess.com"]
[Date "2020.05.19"]
[Round "5"]
[White "ViktoriyaTarasova"]
[Black "bsnsun"]
[Result "0-1"]
[WhiteElo "2274"]
[BlackElo "2488"]
[TimeControl "180+1"]
[EndTime "12:58:12 PDT"]
[Termination "bsnsun won by resignation"]

1. d4 {[%clk 0:03:00.9]} 1... Nf6 {[%clk 0:02:59.6]} 2. c4 {[%clk 0:03:00.9]}
2... e6 {[%clk 0:02:59.1]} 3. Nc3 {[%clk 0:03:00.6]} 3... Bb4 {[%clk 0:02:57.6]}
4. Qc2 {[%clk 0:03:00.4]} 4... O-O {[%clk 0:02:55.5]} 5. Nf3 {[%clk 0:03:00.2]}
5... d5 {[%clk 0:02:53.7]} 6. cxd5 {[%clk 0:03:00.1]} 6... exd5 {[%clk
0:02:51.4]} 7. Bg5 {[%clk 0:02:59.6]} 7... h6 {[%clk 0:02:49.6]} 8. Bh4 {[%clk
0:02:59.6]} 8... c6 {[%clk 0:02:46.3]} 9. e3 {[%clk 0:02:59.2]} 9... g5 {[%clk
0:02:22.9]} 10. Bg3 {[%clk 0:02:58.1]} 10... Ne4 {[%clk 0:02:23.1]} 11. Bd3
{[%clk 0:02:54.7]} 11... Bf5 {[%clk 0:02:20]} 12. Nd2 {[%clk 0:02:47.9]} 12...
Re8 {[%clk 0:01:44]} 13. Ndxe4 {[%clk 0:02:18.4]} 13... Bxe4 {[%clk 0:01:35.5]}
14. Bxe4 {[%clk 0:02:14.4]} 14... dxe4 {[%clk 0:01:35.9]} 15. O-O {[%clk
0:02:12.3]} 15... Qe7 {[%clk 0:01:32.4]} 16. a3 {[%clk 0:02:05.7]} 16... Bxc3
{[%clk 0:01:26.3]} 17. bxc3 {[%clk 0:02:00.4]} 17... Nd7 {[%clk 0:01:26.5]} 18.
c4 {[%clk 0:02:00.8]} 18... Nf6 {[%clk 0:01:10]} 19. h3 {[%clk 0:01:47.8]} 19...
Rad8 {[%clk 0:01:09.8]} 20. Rab1 {[%clk 0:01:43.3]} 20... Rd7 {[%clk 0:01:09.3]}
21. c5 {[%clk 0:01:39]} 21... Nd5 {[%clk 0:01:07.7]} 22. Bd6 {[%clk 0:01:37.8]}
22... Qe6 {[%clk 0:01:06.3]} 23. Rb3 {[%clk 0:01:36.7]} 23... b5 {[%clk
0:00:57.6]} 24. f3 {[%clk 0:01:21.5]} 24... exf3 {[%clk 0:00:56]} 25. Rxf3
{[%clk 0:01:21.4]} 25... Qe4 {[%clk 0:00:54.1]} 26. Qxe4 {[%clk 0:01:20.6]}
26... Rxe4 {[%clk 0:00:54.2]} 27. Kf2 {[%clk 0:01:18.2]} 27... Rd8 {[%clk
0:00:54.6]} 28. Be5 {[%clk 0:01:03]} 28... Re8 {[%clk 0:00:35.9]} 29. g4 {[%clk
0:00:49.6]} 29... Re6 {[%clk 0:00:35.3]} 30. a4 {[%clk 0:00:45.4]} 30... b4
{[%clk 0:00:32.9]} 31. a5 {[%clk 0:00:42.6]} 31... f6 {[%clk 0:00:33.1]} 32. Bb8
{[%clk 0:00:42.7]} 32... a6 {[%clk 0:00:33.3]} 33. Bd6 {[%clk 0:00:35.6]} 33...
Re8 {[%clk 0:00:31.4]} 34. Rd3 {[%clk 0:00:28.5]} 34... Kf7 {[%clk 0:00:28.9]}
35. Rb3 {[%clk 0:00:28.9]} 35... R4e6 {[%clk 0:00:28.4]} 36. Ke2 {[%clk
0:00:28.3]} 36... Re4 {[%clk 0:00:20.5]} 37. Kd2 {[%clk 0:00:27.3]} 37... R4e6
{[%clk 0:00:20.5]} 38. Rd3 {[%clk 0:00:26.7]} 38... Kg6 {[%clk 0:00:20.6]} 39.
Rb3 {[%clk 0:00:27.1]} 39... h5 {[%clk 0:00:21.1]} 40. gxh5+ {[%clk 0:00:26.4]}
40... Kxh5 {[%clk 0:00:21.3]} 41. Rd3 {[%clk 0:00:26.6]} 41... Kg6 {[%clk
0:00:21.8]} 42. Rb3 {[%clk 0:00:26.1]} 42... Rh8 {[%clk 0:00:22]} 43. Ke2 {[%clk
0:00:24.7]} 43... Rh4 {[%clk 0:00:21.1]} 44. Kf2 {[%clk 0:00:24.3]} 44... Rh5
{[%clk 0:00:20.1]} 45. Kg2 {[%clk 0:00:24.3]} 45... Rh4 {[%clk 0:00:20.4]} 46.
Kf2 {[%clk 0:00:24.3]} 46... Rhe4 {[%clk 0:00:20.4]} 47. Bb8 {[%clk 0:00:21.7]}
47... Re8 {[%clk 0:00:19.7]} 48. Bd6 {[%clk 0:00:21.1]} 48... R8e6 {[%clk
0:00:19.4]} 49. Bb8 {[%clk 0:00:19.8]} 49... Re8 {[%clk 0:00:19.5]} 50. Bd6
{[%clk 0:00:20.2]} 50... Rh8 {[%clk 0:00:19.1]} 51. Kg2 {[%clk 0:00:19]} 51...
Rh7 {[%clk 0:00:19.3]} 52. Kh2 {[%clk 0:00:18.9]} 52... Rb7 {[%clk 0:00:18.5]}
53. Kg2 {[%clk 0:00:17.6]} 53... Rb5 {[%clk 0:00:18.8]} 54. Kh2 {[%clk
0:00:17.3]} 54... Rxa5 {[%clk 0:00:19.2]} 55. Kg2 {[%clk 0:00:17.9]} 55... Ra2+
{[%clk 0:00:19.2]} 56. Kg3 {[%clk 0:00:17.7]} 56... Re2 {[%clk 0:00:17.3]} 57.
Rb1 {[%clk 0:00:18.4]} 57... R2xe3 {[%clk 0:00:17.4]} 58. Rf1 {[%clk 0:00:19.1]}
58... Rxf3+ {[%clk 0:00:17.5]} 59. Rxf3 {[%clk 0:00:19.7]} 59... Re3 {[%clk
0:00:17.6]} 60. Rxe3 {[%clk 0:00:19.4]} 60... Nxe3 {[%clk 0:00:18.5]} 61. Kf3
{[%clk 0:00:20.3]} 61... b3 {[%clk 0:00:17.1]} 62. Kxe3 {[%clk 0:00:20.2]} 62...
b2 {[%clk 0:00:17.4]} 63. Kd2 {[%clk 0:00:20.9]} 63... b1=Q {[%clk 0:00:17.5]}
64. Kc3 {[%clk 0:00:21.5]} 64... Qc1+ {[%clk 0:00:17.5]} 65. Kd3 {[%clk
0:00:20.7]} 65... a5 {[%clk 0:00:16.6]} 66. Ke4 {[%clk 0:00:20.8]} 66... a4
{[%clk 0:00:17.1]} 67. Kf3 {[%clk 0:00:21.3]} 67... a3 {[%clk 0:00:17.6]} 68.
Ke4 {[%clk 0:00:22]} 68... a2 {[%clk 0:00:18.3]} 69. Kf3 {[%clk 0:00:22.9]}
69... a1=Q {[%clk 0:00:18.8]} 70. Ke4 {[%clk 0:00:23.5]} 70... Qab1+ {[%clk
0:00:18.8]} 0-1

[Event "*** Titled Tuesday Blitz"]
[Site "Chess.com"]
[Date "2020.05.19"]
[Round "5"]
[White "VojtechPlat"]
[Black "Raja3401"]
[Result "1/2-1/2"]
[WhiteElo "2893"]
[BlackElo "2737"]
[TimeControl "180+1"]
[EndTime "12:58:13 PDT"]
[Termination "Game drawn by agreement"]

1. e4 {[%clk 0:03:00.9]} 1... c5 {[%clk 0:03:00]} 2. Nf3 {[%clk 0:03:00.9]} 2...
d6 {[%clk 0:02:59.9]} 3. c3 {[%clk 0:02:59.1]} 3... Nf6 {[%clk 0:02:59.9]} 4.
Bc4 {[%clk 0:02:59]} 4... Nc6 {[%clk 0:02:49.6]} 5. Qe2 {[%clk 0:02:57.5]} 5...
Bg4 {[%clk 0:02:47.3]} 6. d3 {[%clk 0:02:57.2]} 6... e6 {[%clk 0:02:41.5]} 7.
Bb3 {[%clk 0:02:54.7]} 7... Be7 {[%clk 0:02:39.4]} 8. h3 {[%clk 0:02:54.6]} 8...
Bh5 {[%clk 0:02:39.1]} 9. g4 {[%clk 0:02:54.4]} 9... Bg6 {[%clk 0:02:38.9]} 10.
Bg5 {[%clk 0:02:52.5]} 10... Nd7 {[%clk 0:02:23.8]} 11. Be3 {[%clk 0:02:45.2]}
11... h5 {[%clk 0:02:20.4]} 12. g5 {[%clk 0:02:42.5]} 12... h4 {[%clk
0:02:20.4]} 13. Nbd2 {[%clk 0:02:41.9]} 13... Bh5 {[%clk 0:02:13.4]} 14. Qf1
{[%clk 0:02:34]} 14... b5 {[%clk 0:02:09.1]} 15. Rg1 {[%clk 0:02:30.5]} 15... a5
{[%clk 0:01:44.5]} 16. g6 {[%clk 0:02:12.7]} 16... a4 {[%clk 0:01:33.5]} 17.
gxf7+ {[%clk 0:02:10.6]} 17... Bxf7 {[%clk 0:01:28.1]} 18. Bc2 {[%clk 0:02:10]}
18... a3 {[%clk 0:01:25.5]} 19. b3 {[%clk 0:01:55.2]} 19... Bf6 {[%clk
0:01:24.9]} 20. d4 {[%clk 0:01:55.3]} 20... Qa5 {[%clk 0:01:20.9]} 21. b4 {[%clk
0:01:43.8]} 21... cxb4 {[%clk 0:01:15.3]} 22. Nb3 {[%clk 0:01:42.4]} 22... Qc7
{[%clk 0:01:12.2]} 23. Qxb5 {[%clk 0:01:24.7]} 23... Rh5 {[%clk 0:00:51.7]} 24.
Qe2 {[%clk 0:01:22.5]} 24... bxc3 {[%clk 0:00:48.3]} 25. Ng5 {[%clk 0:01:22.5]}
25... Bxg5 {[%clk 0:00:42]} 26. Bxg5 {[%clk 0:01:07.5]} 26... Nb4 {[%clk
0:00:38]} 27. Bf4 {[%clk 0:01:00.7]} 27... e5 {[%clk 0:00:34.9]} 28. Be3 {[%clk
0:00:50.3]} 28... Nxc2+ {[%clk 0:00:26.9]} 29. Qxc2 {[%clk 0:00:50.1]} 29... Rb8
{[%clk 0:00:26.9]} 30. d5 {[%clk 0:00:49]} 30... Kf8 {[%clk 0:00:24.1]} 31. Rc1
{[%clk 0:00:48.3]} 31... Rc8 {[%clk 0:00:24.3]} 32. Qd3 {[%clk 0:00:37.6]} 32...
Qc4 {[%clk 0:00:22.4]} 33. Ke2 {[%clk 0:00:35.1]} 33... Nf6 {[%clk 0:00:19.9]}
34. Qxc4 {[%clk 0:00:32.6]} 34... Rxc4 {[%clk 0:00:20.8]} 35. f3 {[%clk
0:00:32.6]} 35... Be8 {[%clk 0:00:18.6]} 36. Kd3 {[%clk 0:00:24.3]} 36... Bb5
{[%clk 0:00:10.5]} 37. Kc2 {[%clk 0:00:24.3]} 37... Bd7 {[%clk 0:00:09.5]} 38.
Rh1 {[%clk 0:00:20.1]} 38... Kf7 {[%clk 0:00:09.6]} 39. Rcd1 {[%clk 0:00:20.2]}
39... Rh8 {[%clk 0:00:09]} 40. Rd3 {[%clk 0:00:20.3]} 40... Rhc8 {[%clk
0:00:09.5]} 41. Bg5 {[%clk 0:00:20]} 41... Nh5 {[%clk 0:00:09.5]} 42. Bxh4
{[%clk 0:00:18.9]} 42... Nf4 {[%clk 0:00:09.4]} 43. Rdd1 {[%clk 0:00:19.2]}
43... Ng2 {[%clk 0:00:08.6]} 44. Bg5 {[%clk 0:00:18.1]} 44... Ba4 {[%clk
0:00:07]} 45. Bc1 {[%clk 0:00:17.5]} 45... Bxb3+ {[%clk 0:00:06.8]} 46. axb3
{[%clk 0:00:16.8]} 46... R4c7 {[%clk 0:00:07.1]} 47. Bxa3 {[%clk 0:00:16.5]}
47... Ne3+ {[%clk 0:00:06.4]} 48. Kd3 {[%clk 0:00:16.7]} 48... Nxd1 {[%clk
0:00:07.3]} 49. Rxd1 {[%clk 0:00:16.8]} 49... Ra8 {[%clk 0:00:07.6]} 50. Bxd6
{[%clk 0:00:16.7]} 50... Rb7 {[%clk 0:00:07.4]} 51. Bxe5 {[%clk 0:00:17]} 51...
Rxb3 {[%clk 0:00:07.2]} 52. Bxc3 {[%clk 0:00:17.1]} 52... Rc8 {[%clk 0:00:07.3]}
53. Rc1 {[%clk 0:00:17.3]} 53... Ke7 {[%clk 0:00:07.8]} 54. Kd4 {[%clk
0:00:17.6]} 54... Kd7 {[%clk 0:00:07.3]} 55. Rc2 {[%clk 0:00:17.6]} 55... Ra3
{[%clk 0:00:07.6]} 56. f4 {[%clk 0:00:17.6]} 56... g6 {[%clk 0:00:07.9]} 57. f5
{[%clk 0:00:17.7]} 57... gxf5 {[%clk 0:00:07.9]} 58. exf5 {[%clk 0:00:18]} 58...
Ra4+ {[%clk 0:00:08.4]} 59. Kd3 {[%clk 0:00:18.2]} 59... Rf8 {[%clk 0:00:08.8]}
60. f6 {[%clk 0:00:18]} 60... Rh4 {[%clk 0:00:09.4]} 61. Re2 {[%clk 0:00:17.9]}
61... Rxh3+ {[%clk 0:00:08.9]} 62. Kd2 {[%clk 0:00:18.3]} 62... Rh5 {[%clk
0:00:07.1]} 63. Re7+ {[%clk 0:00:18.3]} 63... Kc8 {[%clk 0:00:07.4]} 64. Re5
{[%clk 0:00:16.3]} 64... Rxe5 {[%clk 0:00:07]} 1/2-1/2

[Event "*** Titled Tuesday Blitz"]
[Site "Chess.com"]
[Date "2020.05.19"]
[Round "5"]
[White "GregShahade"]
[Black "BabyBoss31"]
[Result "1-0"]
[WhiteElo "2508"]
[BlackElo "2337"]
[TimeControl "180+1"]
[EndTime "12:58:14 PDT"]
[Termination "GregShahade won on time"]

1. e4 {[%clk 0:03:00.9]} 1... e6 {[%clk 0:03:00.1]} 2. d4 {[%clk 0:03:00.7]}
2... d5 {[%clk 0:03:01]} 3. Nd2 {[%clk 0:03:01.2]} 3... Nf6 {[%clk 0:02:59.1]}
4. e5 {[%clk 0:03:01.5]} 4... Nfd7 {[%clk 0:02:59.8]} 5. c3 {[%clk 0:03:02.1]}
5... c5 {[%clk 0:03:00.3]} 6. Bd3 {[%clk 0:03:02.6]} 6... Nc6 {[%clk 0:03:01]}
7. Ne2 {[%clk 0:03:03]} 7... cxd4 {[%clk 0:03:01.7]} 8. cxd4 {[%clk 0:03:03.7]}
8... f6 {[%clk 0:03:02.5]} 9. exf6 {[%clk 0:03:03.4]} 9... Nxf6 {[%clk
0:03:03.4]} 10. O-O {[%clk 0:03:03.5]} 10... Bd6 {[%clk 0:03:04]} 11. Nf3 {[%clk
0:03:03]} 11... Qc7 {[%clk 0:03:04.6]} 12. Nc3 {[%clk 0:02:59.9]} 12... a6
{[%clk 0:03:04.6]} 13. Be3 {[%clk 0:02:59.8]} 13... O-O {[%clk 0:03:04.1]} 14.
Rc1 {[%clk 0:03:00.3]} 14... Bd7 {[%clk 0:02:47.3]} 15. Na4 {[%clk 0:03:00.2]}
15... Be8 {[%clk 0:02:44]} 16. Ng5 {[%clk 0:02:48.3]} 16... Qe7 {[%clk
0:02:39.2]} 17. Nc5 {[%clk 0:02:37.2]} 17... Bxc5 {[%clk 0:02:36.6]} 18. Rxc5
{[%clk 0:02:36.6]} 18... h6 {[%clk 0:02:34.5]} 19. Nf3 {[%clk 0:02:25.8]} 19...
Bh5 {[%clk 0:02:28.7]} 20. Be2 {[%clk 0:02:26.1]} 20... Ne4 {[%clk 0:02:01.9]}
21. Rc1 {[%clk 0:02:25.6]} 21... Qf6 {[%clk 0:01:51.2]} 22. Qd3 {[%clk
0:02:01.5]} 22... Rad8 {[%clk 0:01:36.6]} 23. Rfd1 {[%clk 0:02:00.9]} 23... Nd6
{[%clk 0:01:27.7]} 24. b3 {[%clk 0:01:43.8]} 24... Nf5 {[%clk 0:01:17.6]} 25.
Rd2 {[%clk 0:01:16.7]} 25... Rfe8 {[%clk 0:00:53.6]} 26. Re1 {[%clk 0:01:16.1]}
26... Nxe3 {[%clk 0:00:41.5]} 27. Qxe3 {[%clk 0:01:13.3]} 27... e5 {[%clk
0:00:36.2]} 28. Nxe5 {[%clk 0:00:39.1]} 28... Nxe5 {[%clk 0:00:33]} 29. Bxh5
{[%clk 0:00:34.3]} 29... Nf3+ {[%clk 0:00:28.9]} 30. Bxf3 {[%clk 0:00:34.5]}
30... Rxe3 {[%clk 0:00:28.7]} 31. Rxe3 {[%clk 0:00:35.2]} 31... g6 {[%clk
0:00:17.1]} 32. Re5 {[%clk 0:00:33.5]} 32... Qc6 {[%clk 0:00:15.1]} 33. g3
{[%clk 0:00:20.1]} 33... Kg7 {[%clk 0:00:15.2]} 34. Kg2 {[%clk 0:00:17.3]} 34...
Rd7 {[%clk 0:00:15]} 35. Rde2 {[%clk 0:00:17.4]} 35... Kf6 {[%clk 0:00:14.8]}
36. Bg4 {[%clk 0:00:16.6]} 36... Rd6 {[%clk 0:00:14.5]} 37. Re7 {[%clk
0:00:16.3]} 37... Qc3 {[%clk 0:00:13.1]} 38. Rh7 {[%clk 0:00:12.9]} 38... Qxd4
{[%clk 0:00:12.7]} 39. Ree7 {[%clk 0:00:12.3]} 39... Qxg4 {[%clk 0:00:09.6]} 40.
Rhf7+ {[%clk 0:00:12.6]} 40... Kg5 {[%clk 0:00:07.1]} 41. Re5+ {[%clk
0:00:12.4]} 41... Qf5 {[%clk 0:00:05.4]} 42. h4+ {[%clk 0:00:10]} 42... Kh5
{[%clk 0:00:02.5]} 43. Rfxf5+ {[%clk 0:00:08.3]} 43... gxf5 {[%clk 0:00:03.4]}
44. Rxf5+ {[%clk 0:00:08.8]} 44... Kg6 {[%clk 0:00:04.1]} 45. Re5 {[%clk
0:00:09.2]} 45... d4 {[%clk 0:00:04.6]} 46. Kf3 {[%clk 0:00:09.5]} 46... d3
{[%clk 0:00:04.8]} 47. Re1 {[%clk 0:00:10.1]} 47... Kf5 {[%clk 0:00:03.7]} 48.
Rd1 {[%clk 0:00:10.5]} 48... b5 {[%clk 0:00:03]} 49. Ke3 {[%clk 0:00:10.9]}
49... Kg4 {[%clk 0:00:03]} 50. Rxd3 {[%clk 0:00:10.1]} 50... Rf6 {[%clk
0:00:03.2]} 51. Rd4+ {[%clk 0:00:09.6]} 51... Kh3 {[%clk 0:00:03.4]} 52. Rf4
{[%clk 0:00:10.5]} 52... Re6+ {[%clk 0:00:03.5]} 53. Kf3 {[%clk 0:00:11]} 53...
Rc6 {[%clk 0:00:02.4]} 54. Rf5 {[%clk 0:00:09.5]} 54... Rc3+ {[%clk 0:00:02.2]}
55. Kf4 {[%clk 0:00:09]} 55... Rc2 {[%clk 0:00:02.9]} 56. f3 {[%clk 0:00:09.3]}
56... Rxa2 {[%clk 0:00:03]} 57. Rf6 {[%clk 0:00:09.6]} 57... Rb2 {[%clk
0:00:03.4]} 58. Rxa6 {[%clk 0:00:09.6]} 58... Rxb3 {[%clk 0:00:03.8]} 59. Rxh6
{[%clk 0:00:10.5]} 59... Rb4+ {[%clk 0:00:04.2]} 60. Kg5 {[%clk 0:00:10.1]}
60... Kxg3 {[%clk 0:00:04.8]} 61. h5 {[%clk 0:00:09.8]} 61... Rf4 {[%clk
0:00:05]} 62. Rg6 {[%clk 0:00:09.6]} 62... Rxf3 {[%clk 0:00:05]} 63. h6 {[%clk
0:00:10.1]} 63... Kh2 {[%clk 0:00:04]} 64. h7 {[%clk 0:00:09.3]} 64... Rg3+
{[%clk 0:00:02.3]} 65. Kf6 {[%clk 0:00:09.3]} 65... Rh3 {[%clk 0:00:02.4]} 66.
Kg7 {[%clk 0:00:09.8]} 1-0

[Event "*** Titled Tuesday Blitz"]
[Site "Chess.com"]
[Date "2020.05.19"]
[Round "5"]
[White "Alexander_Moskalenko"]
[Black "cukus"]
[Result "1-0"]
[WhiteElo "2824"]
[BlackElo "2497"]
[TimeControl "180+1"]
[EndTime "12:58:16 PDT"]
[Termination "Alexander_Moskalenko won by resignation"]

1. e4 {[%clk 0:03:00.9]} 1... c6 {[%clk 0:02:57.6]} 2. Nf3 {[%clk 0:02:59.2]}
2... d5 {[%clk 0:02:55.2]} 3. d3 {[%clk 0:03:00.1]} 3... dxe4 {[%clk 0:02:53.7]}
4. dxe4 {[%clk 0:03:01]} 4... Qxd1+ {[%clk 0:02:54]} 5. Kxd1 {[%clk 0:03:01.9]}
5... g6 {[%clk 0:02:53.6]} 6. c3 {[%clk 0:03:01]} 6... Bg7 {[%clk 0:02:53.5]} 7.
Bf4 {[%clk 0:03:00.5]} 7... Nf6 {[%clk 0:02:52.1]} 8. Nbd2 {[%clk 0:03:00.3]}
8... O-O {[%clk 0:02:51.9]} 9. Kc2 {[%clk 0:02:59.7]} 9... a5 {[%clk 0:02:37.7]}
10. a4 {[%clk 0:02:53.2]} 10... Na6 {[%clk 0:02:06.2]} 11. Be3 {[%clk
0:02:31.5]} 11... Nc7 {[%clk 0:01:42.4]} 12. Bb6 {[%clk 0:02:27.6]} 12... Ne6
{[%clk 0:01:36.1]} 13. Bc4 {[%clk 0:02:22.5]} 13... Ng4 {[%clk 0:01:21.2]} 14.
Rhe1 {[%clk 0:02:12.5]} 14... Ne5 {[%clk 0:01:09.7]} 15. Bf1 {[%clk 0:02:01.9]}
15... Bd7 {[%clk 0:00:58.6]} 16. g3 {[%clk 0:01:56.2]} 16... Nxf3 {[%clk
0:00:57.4]} 17. Nxf3 {[%clk 0:01:56]} 17... Rfc8 {[%clk 0:00:56.9]} 18. Rad1
{[%clk 0:01:54.6]} 18... Be8 {[%clk 0:00:56.1]} 19. Bc4 {[%clk 0:01:55.2]} 19...
h6 {[%clk 0:00:46]} 20. h4 {[%clk 0:01:55.2]} 20... Nc7 {[%clk 0:00:35.9]} 21.
Bc5 {[%clk 0:01:49.8]} 21... e6 {[%clk 0:00:32.9]} 22. Bd4 {[%clk 0:01:46.9]}
22... b5 {[%clk 0:00:28.6]} 23. Bb3 {[%clk 0:01:46.8]} 23... bxa4 {[%clk
0:00:25.7]} 24. Bxa4 {[%clk 0:01:47.7]} 24... c5 {[%clk 0:00:23.9]} 25. Bxe8
{[%clk 0:01:44.5]} 25... cxd4 {[%clk 0:00:23.8]} 26. Bd7 {[%clk 0:01:45]} 26...
Rd8 {[%clk 0:00:21.8]} 27. Ba4 {[%clk 0:01:25.6]} 27... dxc3 {[%clk 0:00:20.5]}
28. bxc3 {[%clk 0:01:26.5]} 28... Na6 {[%clk 0:00:17.4]} 29. Nd4 {[%clk
0:01:17.5]} 29... Nc5 {[%clk 0:00:15.6]} 30. Bb5 {[%clk 0:01:17.6]} 30... a4
{[%clk 0:00:14.7]} 31. f3 {[%clk 0:01:14.3]} 31... a3 {[%clk 0:00:14.9]} 32. Nc6
{[%clk 0:01:14.3]} 32... Rxd1 {[%clk 0:00:14.5]} 33. Rxd1 {[%clk 0:01:15.2]}
33... a2 {[%clk 0:00:15]} 34. Ra1 {[%clk 0:01:15.2]} 34... Ra3 {[%clk
0:00:14.7]} 35. Nd4 {[%clk 0:01:15.5]} 35... Bxd4 {[%clk 0:00:08.1]} 36. cxd4
{[%clk 0:01:16.4]} 36... Nb7 {[%clk 0:00:07.6]} 37. Bd3 {[%clk 0:00:37.1]} 37...
Nd6 {[%clk 0:00:06.5]} 38. g4 {[%clk 0:00:35.3]} 38... g5 {[%clk 0:00:06.1]} 39.
e5 {[%clk 0:00:33.5]} 39... Nc8 {[%clk 0:00:03.2]} 40. hxg5 {[%clk 0:00:33.5]}
40... hxg5 {[%clk 0:00:03.3]} 41. Bc4 {[%clk 0:00:26.5]} 41... Ne7 {[%clk
0:00:03.5]} 42. Bb3 {[%clk 0:00:22]} 42... Nd5 {[%clk 0:00:03]} 43. Kb2 {[%clk
0:00:18.8]} 43... Ra7 {[%clk 0:00:03.1]} 44. Bxd5 {[%clk 0:00:19.2]} 44... exd5
{[%clk 0:00:02.9]} 45. Rxa2 {[%clk 0:00:20.1]} 45... Rb7+ {[%clk 0:00:02.8]} 46.
Kc3 {[%clk 0:00:20.3]} 46... Rc7+ {[%clk 0:00:03.2]} 47. Kd3 {[%clk 0:00:20.6]}
47... Rc1 {[%clk 0:00:03.1]} 48. Ra5 {[%clk 0:00:21]} 48... Rd1+ {[%clk
0:00:02.9]} 49. Ke3 {[%clk 0:00:21.4]} 49... Re1+ {[%clk 0:00:03.2]} 50. Kf2
{[%clk 0:00:21.8]} 50... Rd1 {[%clk 0:00:03.2]} 51. Rxd5 {[%clk 0:00:22.3]}
51... Kg7 {[%clk 0:00:03.9]} 52. Rd6 {[%clk 0:00:21.7]} 52... Rd2+ {[%clk
0:00:03.5]} 53. Ke3 {[%clk 0:00:22]} 53... Rd1 {[%clk 0:00:03.2]} 54. Ke4 {[%clk
0:00:22.5]} 54... Re1+ {[%clk 0:00:01.5]} 55. Kf5 {[%clk 0:00:22.3]} 55... Rf1
{[%clk 0:00:02.4]} 56. Kxg5 {[%clk 0:00:22.2]} 56... Rxf3 {[%clk 0:00:02.8]} 57.
Rd7 {[%clk 0:00:22.5]} 57... Rd3 {[%clk 0:00:03.1]} 58. e6 {[%clk 0:00:21.7]}
58... Rd1 {[%clk 0:00:04]} 59. Rxf7+ {[%clk 0:00:21.7]} 59... Kg8 {[%clk
0:00:04.9]} 60. Rf4 {[%clk 0:00:22.3]} 60... Re1 {[%clk 0:00:04.6]} 61. Kf5
{[%clk 0:00:22.6]} 61... Rd1 {[%clk 0:00:04]} 62. Ke5 {[%clk 0:00:22.7]} 62...
Re1+ {[%clk 0:00:04.2]} 63. Re4 {[%clk 0:00:23.5]} 63... Rg1 {[%clk 0:00:04.1]}
64. d5 {[%clk 0:00:23.4]} 64... Rf1 {[%clk 0:00:03.2]} 65. Kd6 {[%clk
0:00:23.6]} 65... Ra1 {[%clk 0:00:04]} 66. e7 {[%clk 0:00:22.8]} 66... Ra6+
{[%clk 0:00:04.2]} 67. Kc7 {[%clk 0:00:23.1]} 67... Ra7+ {[%clk 0:00:04.4]} 68.
Kb8 {[%clk 0:00:23.6]} 1-0